Cogmind - Beta 14 @@@ ROGUE MODE // 2024.11.22 @ 06:49:35 Player: Fangrelle Result: Destroyed by Autobeam Turret with Autobeam Performance ------------- Evolutions (0) 0 Regions Visited (3) 600 Robots Destroyed (36) 180 Value Destroyed (931) 931 Prototype IDs (0) 0 Alien Tech Used (0) 0 Bonus (0) 0 TOTAL SCORE: 1711 Bonus ------- None Cogmind --------- Core Integrity 0/250 Matter 287/300 Energy 249/265 System Corruption 0% Temperature Cool (6) Movement Treading (160) Location -10/Subcaves Parts ------- > --- POWER (1) -------- Improved Ion Engine > --- PROPULSION (2) --- Light Treads Light Treads > --- UTILITY (2) ------ Scrap Shield > --- WEAPON (2) ------- EM Pulse Gun Subdweller Beam Cannon > --- INVENTORY (5) ---- Humpback Autobeam Mining Laser Peak State ------------ > --- POWER ------------ Improved Ion Engine > --- PROPULSION ------- Light Treads Light Treads > --- UTILITY ---------- High-capacity Storage Unit Light Armor Plating > --- WEAPON ----------- Subdweller Beam Cannon Battle Cannon > --- INVENTORY -------- Improved Ion Engine Light Treads Light Treads Light Treads Makeshift Leg Wheel Compact Wheel Disposable Heat Sink High-capacity Matter Pod Signal Interpreter Targeting Computer Targeting Computer ECM Suite Hacking Suite EM Pulse Gun Heavy Assault Rifle Heavy Assault Rifle Battle Cannon Datajack Mining Laser [Rating: 13] Favorites ----------- Power Improved Ion Engine Engine Improved Ion Engine Propulsion Light Treads Treads Light Treads Leg Aluminum Leg Utility High-capacity Storage Unit Storage High-capacity Storage Unit Processor Targeting Computer Protection Light Armor Plating Weapon Medium Laser Energy Gun Medium Laser Energy Cannon Subdweller Beam Cannon Ballistic Gun Light Assault Rifle Ballistic Cannon Light Cannon Build | -11 -10 -10 -10 ------- Run | Yrd Mat Min Sub Slots Evolved . | . . . . Power . | . . . . Propulsion . | . . . . Utility . | . . . . Weapon . | . . . . Parts Attached 23 | . 9 4 10 Power 2 | . . 1 1 Engine 2 | . . 1 1 Core . | . . . . Reactor . | . . . . Propulsion 7 | . 3 2 2 Treads 7 | . 3 2 2 Leg . | . . . . Wheel . | . . . . Hover . | . . . . Flight . | . . . . Utility 6 | . 3 1 2 Device . | . . . . Storage 1 | . 1 . . Processor 1 | . 1 . . Hackware . | . . . . Protection 4 | . 1 1 2 Artifact . | . . . . Weapon 8 | . 3 . 5 Energy Gun 2 | . 1 . 1 Energy Cannon 2 | . . . 2 Ballistic Gun 1 | . . . 1 Ballistic Cannon 3 | . 2 . 1 Launcher . | . . . . Special Weapon . | . . . . Impact Weapon . | . . . . Slashing Weapon . | . . . . Piercing Weapon . | . . . . Special Melee Weapon . | . . . . Unidentified Prototypes . | . . . . Parts Lost 5 | . . 1 4 Power . | . . . . Propulsion 1 | . . . 1 Utility 3 | . . 1 2 Weapon 1 | . . . 1 Highest Loss Streak 2 | . . 1 2 To Critical Strikes . | . . . . Average Slot Usage (%) 95 | . 97 99 91 Engine 14 | . 14 14 14 Treads 26 | . 20 28 28 Leg 1 | . 7 . . Storage 12 | . 14 14 11 Processor 2 | . 8 . . Protection 9 | . 3 13 9 Energy Gun 8 | . 14 14 2 Energy Cannon 5 | . . . 11 Ballistic Gun 2 | . 8 . 1 Ballistic Cannon 10 | . 5 14 11 Peak Build Rating 13 | . 8 10 13 Average Rating 9 | . 7 9 11 On Entrance 7 | 6 6 8 10 Naked Turns . | . . . . Heaviest Build 61 | 13 53 55 61 Greatest Support 40 | 20 40 40 40 Greatest Overweight (x) 1 | . 1 1 1 Average Overweight (x) . | . . 1 . Largest Inventory Capacity 20 | . 20 20 20 Average Capacity 17 | . 13 20 17 Most Carried 20 | . 13 20 20 Average Carried 14 | . 8 17 16 Final Capacity 20 | 8 20 20 5 Final Carried 20 | 6 13 20 4 Class Distribution -------------------- 76% | Mutant 23% | Scavenger-Mutant Dominant Class ---------------- Mutant | -10/Materials Mutant | -10/Mines Mutant | -10/Subcaves Resources | -11 -10 -10 -10 ----------- Run | Yrd Mat Min Sub Matter Collected 978 | 200 353 173 252 Remotely . | . . . . Salvage Created 1006 | . 528 42 436 Parts 85 | . 35 6 44 Haulers Intercepted 1 | . 1 . . Recyclers Shooed 1 | . 1 . . Parts Field Recycled . | . . . . Retrieved Matter . | . . . . Parts Self-Destructed 8 | . . . 8 Prevented 1 | . . . 1 Kills | -11 -10 -10 -10 ------- Run | Yrd Mat Min Sub Combat Hostiles Destroyed 29 | . 13 3 13 Guns 9 | . 7 2 . Cannons 20 | . 6 1 13 Classes Destroyed 9 | . 6 . 3 Worker 1 | . 1 . . Builder 2 | . 1 1 . Hauler 1 | . 1 . . Turret 1 | . . . 1 Watcher 2 | . 2 . . Swarmer 9 | . 3 3 3 Grunt 10 | . 10 . . Cobbler 1 | . . . 1 Subdweller 10 | . . . 10 Best Kill Streak 3 | . 3 3 3 Combat Bots Only 3 | . 3 3 3 Max Kills in Single Turn 2 | . 2 1 1 Gunslinging 1 | . 1 . . Exploded . | . . . . Melee . | . . . . Uniques/NPCs Destroyed . | . . . . Combat | -11 -10 -10 -10 -------- Run | Yrd Mat Min Sub Hostile Shots Fired 251 | . 99 25 127 Missed 86 | . 32 7 47 Damage Taken 2074 | . 729 176 1169 Core 254 | . 111 47 96 Absorbed by Shields . | . . . . Regen/Repaired (Parts) 97 | . 97 . . Core Remaining (%) 100 | 100 . . . Volleys Fired 148 | . 70 10 68 Largest 2 | . 2 2 2 Hottest 120 | . 85 85 120 Shots Fired 250 | . 140 18 92 Gun 148 | . 117 8 23 Cannon 102 | . 23 10 69 Launcher . | . . . . Special . | . . . . Kinetic 125 | . 70 10 45 Thermal 113 | . 70 8 35 Explosive . | . . . . Electromagnetic 12 | . . . 12 Robot Hit Streak 11 | . 11 7 8 Robot Miss Streak 6 | . 6 3 2 Penetration Max . | . . . . Secondary Targets 2 | . 2 . . Max Gunslinging Chain 1 | . 1 . . Shots Hit Robots 142 | . 86 8 48 Core Hits 59 | . 34 4 21 Critical Kills . | . . . . Critical Parts Destroyed . | . . . . Critical Strikes 9 | . 7 . 2 Burn 7 | . 6 . 1 Blast 2 | . 1 . 1 Melee Attacks . | . . . . Impact . | . . . . Slashing . | . . . . Piercing . | . . . . Sneak Attacks . | . . . . Combat Hostiles . | . . . . Follow-up Attacks . | . . . . Damage Inflicted 2107 | . 1033 156 918 Guns 960 | . 766 25 169 Cannons 1121 | . 260 112 749 Explosions . | . . . . Melee . | . . . . Ramming 26 | . 7 19 . Kinetic 1115 | . 513 112 490 Thermal 880 | . 513 25 342 Explosive . | . . . . Electromagnetic 86 | . . . 86 Impact . | . . . . Slashing . | . . . . Piercing . | . . . . Highest Corruption . | . . . . Average Corruption . | . . . . Corruption Purged . | . . . . Corruption Blocked . | . . . . Overload Shots . | . . . . Overflow Damage 6 | . . . 6 Projectiles 6 | . . . 6 Explosions . | . . . . Melee . | . . . . Knockbacks 16 | . 4 2 10 Impact . | . . . . Kinetic 15 | . 4 2 9 Secondary 1 | . . . 1 Self-Inflicted Damage . | . . . . Shots . | . . . . Rammed 4 | . 2 2 . Targets Rammed 4 | . 2 2 . Kicked . | . . . . Crushed . | . . . . Highest Temperature 274 | . 274 264 262 Average Temperature 77 | . 84 133 36 Received Heat Transfer 1035 | . 306 9 720 Siege Activations . | . . . . Robots Corrupted . | . . . . Combat Hostiles . | . . . . Parts Fried . | . . . . Impact Corruptions . | . . . . Robots Melted . | . . . . Combat Hostiles . | . . . . Parts Melted 2 | . 2 . . Heat Transferred 2590 | . 1961 74 555 Parts Sabotaged . | . . . . Parts Stolen . | . . . . Parts Stripped . | . . . . Power Chain Reactions . | . . . . Alert | -11 -10 -10 -10 ------- Run | Yrd Mat Min Sub Peak Influence 221 | . 221 123 . Initial 58 | . . 58 . Average 45 | . 69 22 . Maximum Alert Level 1 | . 1 . . Low Security (%) 97 | . 94 100 . Level 1 2 | . 5 . . Level 2 . | . . . . Level 3 . | . . . . Level 4 . | . . . . Level 5 . | . . . . High Security . | . . . . Max Security . | . . . . Squads Dispatched 2 | . 2 . . Investigation 2 | . 2 . . Extermination . | . . . . Reinforcement . | . . . . Assault . | . . . . Garrison . | . . . . Intercept . | . . . . Searches Triggered . | . . . . Construction Impeded . | . . . . Haulers Reinforced . | . . . . Active Scanning Responses . | . . . . Cargo Convoy Interrupts . | . . . . Stealth | -11 -10 -10 -10 --------- Run | Yrd Mat Min Sub Distress Signals 1 | . 1 . . Communications Jammed . | . . . . Distress Signals . | . . . . Times Spotted 47 | . 20 4 23 Peak Tracking Total 6 | . 4 3 6 Tactical Retreats 3 | . . . 3 Traps | -11 -10 -10 -10 ------- Run | Yrd Mat Min Sub Traps Triggered . | . . . . Indirectly . | . . . . Trap Hack Attempts . | . . . . Triggered . | . . . . Disarmed . | . . . . Reprogrammed . | . . . . Reused . | . . . . Traps Extracted . | . . . . Installed . | . . . . Triggered . | . . . . Machines | -11 -10 -10 -10 ---------- Run | Yrd Mat Min Sub Machines Disabled . | . . . . Max in Single Turn . | . . . . Machines Repaired . | . . . . Machines Dismantled . | . . . . Machines Sabotaged . | . . . . Overloaded Fab Kills . | . . . . Hacking | -11 -10 -10 -10 --------- Run | Yrd Mat Min Sub Machines Accessed 9 | . 9 . . Terminals 6 | . 6 . . Fabricators . | . . . . Repair Stations 1 | . 1 . . Recycling Units 2 | . 2 . . Scanalyzers . | . . . . Garrison Access . | . . . . Total Hacks 28 | . 28 . . Successful 15 | . 15 . . Failed 13 | . 13 . . Catastrophic 1 | . 1 . . Database Lockouts . | . . . . Manual 23 | . 23 . . Terminals 21 | . 21 . . Fabricators . | . . . . Repair Stations 2 | . 2 . . Recycling Units 5 | . 5 . . Scanalyzers . | . . . . Garrison Access . | . . . . Terminal Hacks . | . . . . Fabricator Hacks . | . . . . Repair Station Hacks 2 | . 2 . . Scan Component 1 | . 1 . . Repair 1 | . 1 . . Recycling Unit Hacks 2 | . 2 . . Retrieve Components 2 | . 2 . . Scanalyzer . | . . . . Garrison Access Hacks . | . . . . Unauthorized Hacks 11 | . 11 . . Terminals 9 | . 9 . . Assimilate 3 | . 3 . . Botnet 5 | . 5 . . Operators 1 | . 1 . . Fabricators . | . . . . Repair Stations . | . . . . Recycling Units 2 | . 2 . . Tunnel 2 | . 2 . . Scanalyzers . | . . . . Garrison Access . | . . . . Data Cores Recovered . | . . . . Used . | . . . . Hacking Detections 7 | . 7 . . Full Trace Events . | . . . . Feedback Events . | . . . . Feedback Blocked . | . . . . Robot Schematics Acquired . | . . . . Robots Built . | . . . . Authchips . | . . . . Time . | . . . . Total Robot Build Rating . | . . . . Part Schematics Acquired . | . . . . Parts Built . | . . . . Authchips . | . . . . Time . | . . . . Total Part Build Rating . | . . . . Parts Repaired 1 | . 1 . . Time 26 | . 26 . . Parts Recycled . | . . . . Recycled Matter . | . . . . Retrieved Matter . | . . . . Retrieved Components 11 | . 11 . . Parts Scanalyzed . | . . . . Part Schematics Acquired . | . . . . Parts Damaged . | . . . . Bothacking | -11 -10 -10 -10 ------------ Run | Yrd Mat Min Sub Used RIF Installer . | . . . . Robots Hacked . | . . . . Non-combat . | . . . . Combat . | . . . . Robot Hacks Applied . | . . . . Relay Couplers Released . | . . . . Fabnet Peak Effective % . | . . . . Robots Rewired . | . . . . Allies Hacked . | . . . . Hacks Repelled . | . . . . Allies | -11 -10 -10 -10 -------- Run | Yrd Mat Min Sub Total Allies 1 | . 1 . . Largest Group 1 | . 1 1 . Highest-Rated Group 10 | . 10 10 . Highest-Rated Ally 10 | . 10 10 . Total Orders 1 | . . 1 . STAY 1 | . . 1 . Ally Attacks . | . . . . Total Damage . | . . . . Kills . | . . . . Allies Corrupted . | . . . . Allies Melted . | . . . . Intel | -11 -10 -10 -10 ------- Run | Yrd Mat Min Sub Robot Analysis Total . | . . . . Derelict Logs Recovered 2 | . . 1 1 Drone Launches . | . . . . Drone Recoveries . | . . . . Exploration | -11 -10 -10 -10 ------------- Run | Yrd Mat Min Sub Turns Passed 7688 | . 1935 2072 3681 Spaces Moved 2816 | 1 596 843 1376 Core . | . . . . Treads 2608 | . 389 843 1376 Legs 208 | 1 207 . . Wheels . | . . . . Hover . | . . . . Flight . | . . . . Fastest Speed 120 | 120 120 240 160 Average Speed 218 | 120 187 240 218 Slowest Speed 240 | 120 240 240 240 Overloaded Moves . | . . . . Propulsion Burnouts . | . . . . Robots Hopped . | . . . . Cave-ins Triggered . | . . . . Exploration Rate (%) 60 | 2 77 101 60 Regions Visited 3 Branch Regions 2 Pre-discovered Areas 5 | . 2 2 1 Known Exits Taken . | . . . . Unknown Exits Taken 3 | 1 1 1 . Scrap Searched 4 | . . 1 3 Spaces Dug . | . . . . Terrain Destroyed 5 | . . . 5 Melee . | . . . . Projectile 5 | . . . 5 AOE . | . . . . Terrain Rammed . | . . . . Walls Destroyed . | . . . . Machines Disabled . | . . . . Actions | -11 -10 -10 -10 --------- Run | Yrd Mat Min Sub Total 4119 | . 1282 872 1965 Wait 1074 | . 589 . 485 Move 2813 | . 595 842 1376 Hop . | . . . . Pick Up 30 | . 10 9 11 Fast Attach 7 | . 4 1 2 Attach 4 | . . . 4 Detach . | . . . . Swap 12 | . 5 3 4 Drop 25 | . 7 5 13 Fire 148 | . 70 10 68 Melee . | . . . . Ram . | . . . . Kick . | . . . . Crush 4 | . 2 2 . Escape Stasis . | . . . . Rewire . | . . . . Trap . | . . . . Miscellaneous 2 | . . . 2 Route ------- -11/Scrapyard -10/Materials (discovered 4 exits: [*Mat x3] / [*Min]) -10/Mines (discovered 3 exits: [*Mat x2] / [*Sub]) -10/Subcaves (discovered 3 exits: [*Mat x2] / [*Rec]) History --------- Turn | Location | Event 1 | -11/Scrapyard | Discovered new exit (range 0) 1 | -11/Scrapyard | Entered Materials 187 | -10/Materials | Discovered new exit (range 9) 268 | -10/Materials | Discovered new exit (range 6) 300 | -10/Materials | Build established: Mutant 1044 | -10/Materials | Discovered new exit (range 15) 1559 | -10/Materials | Repaired Lgt. Cannon 1625 | -10/Materials | Discovered new exit (range 4) 1936 | -10/Materials | Entered Mines 1936 | -10/Mines | Accompanied by 1 ally 1938 | -10/Mines | Core integrity fell below 50% 2129 | -10/Mines | Discovered new exit (range 9) 2336 | -10/Mines | Learned location of Storage (-9) 2407 | -10/Mines | Learned location of Zion (-7) 2633 | -10/Mines | Discovered new exit (range 12) 2712 | -10/Mines | Joined a pair of Derelicts in attacking an 0b10 outpost 3993 | -10/Mines | Discovered new exit (range 6) 4008 | -10/Mines | Entered Subcaves 4162 | -10/Subcaves | A swath of the cavern ceiling suddenly collapsed 4665 | -10/Subcaves | Build established: Scavenger-Mutant 4668 | -10/Subcaves | Shifting Twisted Machinery released Sub. Laser 4670 | -10/Subcaves | Shifting Twisted Machinery released Mak. Leg 4688 | -10/Subcaves | Shifting Twisted Machinery released Riot Gun 4689 | -10/Subcaves | Shifting Twisted Machinery released Battle Cannon 4741 | -10/Subcaves | Discovered new exit (range 10) 4857 | -10/Subcaves | Shifting Twisted Machinery released Sub. Beam Cannon 5051 | -10/Subcaves | Shifting Twisted Machinery released Sub. Monowheel 5874 | -10/Subcaves | Discovered new exit (range 16) 6026 | -10/Subcaves | Core integrity fell below 20% 6332 | -10/Subcaves | Build established: Mutant 7661 | -10/Subcaves | Discovered new exit (range 11) 7689 | -10/Subcaves | Destroyed by Autobeam Turret with Autobeam Last Messages --------------- 07056_ Extracted 16 matter. 07179_ S-10 Pest destroyed. 07188_ Sub. Beam Cannon shoots sparks and powers down. 07188_ Destroyed Flight Unit. 07188_ S-10 Pest knocked back. 07188_ S-10 Pest destroyed. 07193_ S-10 Pest Lgt. Ion Engine blasted off. 07193_ S-10 Pest destroyed. 07199_ Dropped Broken Sub. Beam Cannon. 07200_ Flight Unit fries itself beyond repair. 07324_ Acquired Sub. Beam Cannon. 07327_ Dropped Battle Cannon. 07328_ Acquired EM Pulse Gun. 07537_ Scrap Shield Fragment affixed to Scrap Shield (+49). 07540_ Scrap Shield Fragment affixed to Scrap Shield (+6). 07640_ Acquired 22 matter. 07649_ Autobeam Turret destroyed. 07653_ Corrupted Autobeam self-destruct mechanism malfunctions. 07661_ EXIT=FOUND 07674_ Acquired Corrupted Autobeam. Map ----- +----------------------------------------------------+ | ## #??####??????# "# ## | | #??# ##????## ##" ##? | | ##??# ###??## ###"" #? | | #???# #### ## #?#####? | | ##### ## #???# ## ## "#??????? | | ????# ## ######### &## "###????? | | ????## ########## ## # &% ## ##???? | | ????## ## #?????# ! & #???? | | ????# # ##????## & #???? | | ???### # #?????## # # ## % #########???? | | ???# # ##????##"# ##### #### ##??????# #?## | | ??## ##?????#""# #???### #??# ######?## ## | | ### #??????### "#?????###??## ### | | ## # #??????##""##???????????# ## | | # # # #??????#"""#?????????##?# ##### | | # # ##?????##"##?????????# ### ##?# | | ##?????#"##?????????# ## ### ## | | # ##??### "#??????##?# ###?## | | # #####""""#?#####;### ##??# | | ### # "" " "#?#""" "#?# % #### | | # #####?##"#"#""######" #?## % * # | | ####??????#####"## ##" #### ## ] | | ??????????????### ##""t % ## #### | | ??????????????????####< % ##### #??#### | | ?????????????????????##"" #??###?????## | | ??????????????????????#" @ #######?????????#### | | ??????????????????????#" #???????????????# ### | | ??????????????????????#""" "#???????????????# ## | | ??????????????????????########???????????????# # | | ??????????????????????????????????????????????# | | ??????????????????????????????????????????????## | | ???????????????????????????????????????????????# | | ???????????????????????????????????????????????# | | ???????????????????????????????????????????????## | | ???????????????????????????????????????????????## | | ???????????????????????????????????????????????# | | ???????????????????????????????????????????????# | | ???????????????????????????????????????????????## | | ????????????????????????????????????????????????# | | ???????????????????????????????????????????????## | | ???????????????????????????????????????????????# | | ???????????????????????????????????????????????# | | ???????????????????????????????????????????###?# | | ??????????????????????????????????????######""## | | ??????????????????????????????????????#" "" | | ?????????????????????????????????????? "" | | ?????????????????????????????????????"" " ## ## | | ??????????????????????????????????? """### ## | | ???????????????????????????????????? " "" "## | | ??????????????????????????????????????" """ | +----------------------------------------------------+ Best States ------------- Heat Dissipation 25 Energy Generation 12 Energy Capacity 265 Matter Stores 300 Matter Capacity 300 Sight Range 16 Terrain Scan Density 10 Armor Coverage 800 Evasion (%) 55 Targeting Accuracy 5 Recoil Reduction 2 Item Schematics ----------------- None Robot Schematics ------------------ None Fabricated ------------ Nothing Alien Tech Used ----------------- None Achievements -------------- None Challenges ------------ None Game ------ Seed ThermalSuperquantumProjector Manual? 0 Play Time 00:32:19 Cumulative 125.2 hours Start 2024.11.21 @ 11:28:40 End 2024.11.22 @ 06:49:35 Sessions 7 Manual Loads 0 Difficulty Rogue Special Mode None Game No. 233 Rogue 233 Adventurer 0 Explorer 0 Win Type - Total 0 Types 0/0/0/0/0/0/0/0/0 Lore% 43 Gallery% 40 Achievement% 36 Wizard Run 0 Options --------- Layout 0 ASCII 0 Keyboard 0 Movement Mouse Keybinds 0 Fullscreen 1 Font 24/Smallcaps Map View 91x25 Zoom Use 74% Tactical HUD 1 Map Filters NONE Filters NONE Steam 1 RUN: 96359004-a6d4-48e1-9ed5-294c7a16cc81